Workbook

Sheet Wykres
R1: a_inc | S1: b_inc | T1: t_inc | V1: Animate | W1: =AVERAGE(x) -> 339.5975247 | X1: =AVERAGE(y) -> 197.6622015
B2: Parametry | R2: 862.6193237 | S2: 790.4800415 | T2: 373.5361633 | V2: 0 | W2: =STDEV(x) -> 122549.6243 | X2: =STDEV(y) -> 121407.777
B3: =a_inc -> 862.6193237
B4: =b_inc -> 790.4800415 | R4: a | S4: b | T4: t | U4: x | V4: y | W4: x(norm) | X4: y(norm)
B5: =t_inc -> 373.5361633 | R5: =1+animate -> 1 | S5: =1+animate -> 1 | T5: =animate+1 -> 1 | U5: =(R5-S5)*COS(T5)+S5*COS((R5/S5-1)*T5) -> 1 | V5: =(R5-S5)*SIN(T5)-S5*SIN((R5/S5-1)*T5) -> 0 | W5: =(U5-$W$1)/$W$2 -> -0.002762942168 | X5: =(V5-$X$1)/$X$2 -> -0.001628085172
R6: =R5+a_inc -> 863.6193237 | S6: =S5+b_inc -> 791.4800415 | T6: =T5+t_inc -> 374.5361633 | U6: =(R6-S6)*COS(T6)+S6*COS((R6/S6-1)*T6) -> -778.3216908 | V6: =(R6-S6)*SIN(T6)-S6*SIN((R6/S6-1)*T6) -> -368.826994 | W6: -0.009122175785 | X6: -0.004666004183
R7: 1726.238647 | S7: =S6+b_inc -> 1581.960083 | T7: 748.0723267 | U7: 1131.224005 | V7: 1280.956606 | W7: 0.006459640203 | X7: 0.008922776045
R8: 2588.857971 | S8: 2372.440125 | T8: 1121.60849 | U8: -717.9860568 | V8: -2331.689058 | W8: -0.008629839442 | X8: -0.02083351925
R9: 3451.477295 | S9: 3162.920166 | T9: 1495.144653 | U9: -519.6554034 | V9: 2987.98436 | W9: -0.007011469296 | X9: 0.02298305946
R10: 4314.096619 | S10: 3953.400208 | T10: 1868.680817 | U10: 2314.243897 | V10: -2768.192579 | W10: 0.01611303489 | X10: -0.02442886983
R11: 5176.715942 | S11: 4743.880249 | T11: 2242.21698 | U11: -4132.781761 | V11: 1418.342076 | W11: -0.03649443489 | X11: 0.01005437958
R12: 6039.335266 | S12: 5534.360291 | T12: 2615.753143 | U12: 5325.792638 | V12: 968.5334078 | W12: 0.04068715135 | X12: 0.00634943844
A13: 5 | R13: 6901.95459 | S13: 6324.840332 | T13: 2989.289307 | U13: -5325.68817 | V13: -3929.558872 | W13: -0.04622850316 | X13: -0.03399470096
R14: 7764.573914 | S14: 7115.320374 | T14: 3362.82547 | U14: 3838.963057 | V14: 6719.735289 | W14: 0.02855468184 | X14: 0.05372038965
R15: 8627.193237 | S15: 7905.800415 | T15: 3736.361633 | U15: -975.5450603 | V15: -8493.825048 | W15: -0.01073151054 | X15: -0.07158921334
R16: 9489.812561 | S16: 8696.280457 | T16: 4109.897797 | U16: -2727.059557 | V16: 8538.585598 | W16: -0.02502379831 | X16: 0.06870172243
R17: 10352.43188 | S17: 9486.760498 | T17: 4483.43396 | U17: 6400.60051 | V17: -6494.55697 | W17: 0.04945754032 | X17: -0.05512183269
R18: 11215.05121 | S18: 10277.24054 | T18: 4856.970123 | U18: -9047.38284 | V18: 2505.067239 | W18: -0.07659738181 | X18: 0.01900541377
R19: 12077.67053 | S19: 11067.72058 | T19: 5230.506287 | U19: 9799.8137 | V19: 2754.84905 | W19: 0.07719498308 | X19: 0.02106279277
R20: 12940.28986 | S20: 11858.20062 | T20: 5604.04245 | U20: -8172.814307 | V20: -8188.431173 | W20: -0.0694609378 | X20: -0.06907377419
R21: 13802.90918 | S21: 12648.68066 | T21: 5977.578613 | U21: 4240.646305 | V21: 12509.64417 | W21: 0.03183240097 | X21: 0.101410159
R22: 14665.5285 | S22: 13439.16071 | T22: 6351.114777 | U22: 1315.608381 | V22: -14548.44082 | W22: 0.007964209287 | X22: -0.1214592951
R23: 15528.14783 | S23: 14229.64075 | T23: 6724.65094 | U23: -7314.036361 | V23: 13556.58802 | W23: -0.06245334433 | X23: 0.1100335263
R24: 16390.76715 | S24: 15020.12079 | T24: 7098.187103 | U24: 12317.6378 | V24: -9436.236435 | W24: 0.09774032638 | X24: -0.07935157758
R25: 17253.38647 | S25: 15810.60083 | T25: 7471.723267 | U25: -14969.24895 | V25: 2827.221963 | W25: -0.1249195708 | X25: 0.02165890708
R26: 18116.0058 | S26: 16601.08087 | T26: 7845.25943 | U26: 14338.54993 | V26: 4980.086727 | W26: 0.114230888 | X26: 0.03939141827
R27: 18978.62512 | S27: 17391.56091 | T27: 8218.795593 | U27: -10195.17856 | V27: -12298.47706 | W27: -0.0859633487 | X27: -0.1029270082
R28: 19841.24445 | S28: 18182.04095 | T28: 8592.331757 | U28: 3133.970956 | V28: 17414.44843 | W28: 0.02280197469 | X28: 0.1418095829
R29: 20703.86377 | S29: 18972.521 | T29: 8965.86792 | U29: 5490.506127 | V29: -18993.84737 | W29: 0.0420312068 | X29: -0.1580747959
R30: 21566.48309 | S30: 19763.00104 | T30: 9339.404083 | U30: -13819.23096 | V30: 16426.74567 | W30: -0.1155354703 | X30: 0.1336741671
R31: 22429.10242 | S31: 20553.48108 | T31: 9712.940247 | U31: 19886.56776 | V31: -10024.19186 | W31: 0.1595024901 | X31: -0.08419439275
R32: 23291.72174 | S32: 21343.96112 | T32: 10086.47641 | U32: -22075.624 | V32: 1009.636675 | W32: -0.1829073051 | X32: 0.006687993915
R33: 24154.34106 | S33: 22134.44116 | T33: 10460.01257 | U33: 19526.45978 | V33: 8706.407195 | W33: 0.1565640234 | X33: 0.07008401935
R34: 25016.96039 | S34: 22924.9212 | T34: 10833.54874 | U34: -12396.82043 | V34: -16928.74736 | W34: -0.1039286577 | X34: -0.141065177
R35: 25879.57971 | S35: 23715.40125 | T35: 11207.0849 | U35: 1903.648434 | V35: 21672.63478 | W35: 0.01276259245 | X35: 0.1768830062
R36: 26742.19904 | S36: 24505.88129 | T36: 11580.62106 | U36: 9879.028726 | V36: -21640.3411 | W36: 0.0778413745 | X36: -0.1798731831
R37: 27604.81836 | S37: 25296.36133 | T37: 11954.15723 | U37: =(R37-S37)*COS(T37)+S37*COS((R37/S37-1)*T37) -> -20434.38012 | V37: =(R37-S37)*SIN(T37)-S37*SIN((R37/S37-1)*T37) -> 16565.85472 | W37: -0.1695148211 | X37: 0.1348199673
R38: 28467.43768 | S38: 26086.84137 | T38: 12327.69339 | U38: 27346.16583 | V38: -7339.018736 | W38: 0.22037251 | X38: -0.06207741483
R39: 29330.05701 | S39: 26877.32141 | T39: 12701.22955 | U39: -28853.22973 | V39: -4132.675203 | W39: -0.2382122949 | X39: -0.03566771018
R40: 30192.67633 | S40: 27667.80145 | T40: 13074.76572 | U40: 24287.82702 | V40: 15307.23812 | W40: 0.1954165884 | X40: 0.124453114
R41: 31055.29565 | S41: 28458.28149 | T41: 13448.30188 | U41: -14290.43823 | V41: -23560.70393 | W41: -0.1193805027 | X41: -0.1956906445
R42: 31917.91498 | S42: 29248.76154 | T42: 13821.83804 | U42: 739.5877758 | V42: 26789.95341 | W42: 0.003263904344 | X42: 0.2190328483
R43: 32780.5343 | S43: 30039.24158 | T43: 14195.37421 | U43: 13602.41399 | V43: -23928.84474 | W43: 0.1082240483 | X43: -0.1987229116
R44: 33643.15363 | S44: 30829.72162 | T44: 14568.91037 | U44: -25661.6448 | V44: 15253.67181 | W44: -0.2121690905 | X44: 0.1240119042
R45: 34505.77295 | S45: 31620.20166 | T45: 14942.44653 | U45: 32723.37583 | V45: -2396.365763 | W45: 0.264250327 | X45: -0.02136624217
R46: 35368.39227 | S46: 32410.6817 | T46: 15315.9827 | U46: -33054.02251 | V46: -11952.84187 | W46: -0.2724905949 | X46: -0.1000801132
R47: 36231.0116 | S47: 33201.16174 | T47: 15689.51886 | U47: 26331.07316 | V47: 24601.04737 | W47: 0.2120893946 | X47: 0.2010034758
R48: 37093.63092 | S48: 33991.64178 | T48: 16063.05502 | U48: -13775.08425 | V48: -32552.53514 | W48: -0.115175235 | X48: -0.2697537024
R49: 37956.25024 | S49: 34782.12183 | T49: 16436.59119 | U49: -2059.112942 | V49: 33700.32463 | W49: -0.01957338083 | X49: 0.275951535
R50: 38818.86957 | S50: 35572.60187 | T50: 16810.12735 | U50: 17799.34806 | V50: -27351.55309 | W50: 0.1424708614 | X50: -0.2269147494
R51: 39681.48889 | S51: 36363.08191 | T51: 17183.66351 | U51: -29977.33463 | V51: 14459.36094 | W51: -0.2473849457 | X51: 0.1174694001
R52: 40544.10822 | S52: 37153.56195 | T52: 17557.19968 | U52: 35799.82341 | V52: 2505.170804 | W52: 0.2893540154 | X52: 0.01900626681
R53: 41406.72754 | S53: 37944.04199 | T53: 17930.73584 | U53: -33797.85354 | V53: -20028.8558 | W53: -0.2785602262 | X53: -0.1665998546
R54: 42269.34686 | S54: 38734.52203 | T54: 18304.272 | U54: 24203.07589 | V54: 34288.63644 | W54: 0.1947250226 | X54: 0.2807972857
R55: 43131.96619 | S55: 39525.00208 | T55: 18677.80817 | U55: -8955.945604 | V55: -41987.04168 | W55: -0.07585125765 | X55: -0.3474629461
R56: 43994.58551 | S56: 40315.48212 | T56: 19051.34433 | U56: -8669.929135 | V56: 41107.99272 | W56: -0.07351737478 | X56: 0.3369663091
R57: 44857.20483 | S57: 41105.96216 | T57: 19424.88049 | U57: 24756.97872 | V57: -31420.45237 | W57: 0.1992448474 | X57: -0.2604290709
R58: 45719.82416 | S58: 41896.4422 | T58: 19798.41666 | U58: -35602.79259 | V58: 14607.0429 | W58: -0.2932884562 | X58: 0.1186858129
R59: 46582.44348 | S59: 42686.92224 | T59: 20171.95282 | U59: 38561.99518 | V59: 6026.080035 | W59: 0.3118932258 | X59: 0.0480069562
R60: 47445.06281 | S60: 43477.40228 | T60: 20545.48898 | U60: -32680.78968 | V60: -26209.86201 | W60: -0.26944503 | X60: -0.2175109771
R61: 48307.68213 | S61: 44267.88232 | T61: 20919.02515 | U61: 18973.90385 | V61: 41610.74306 | W61: 0.1520551893 | X61: 0.3411073152
R62: 49170.30145 | S62: 45058.36237 | T62: 21292.56131 | U62: -268.736146 | V62: -48776.2274 | W62: -0.004963978259 | X62: -0.4033834636
R63: 50032.92078 | S63: 45848.84241 | T63: 21666.09747 | U63: -19363.8889 | V63: 45919.79335 | W63: -0.1607796559 | X63: 0.3765996896
R64: 50895.5401 | S64: 46639.32245 | T64: 22039.63364 | U64: 35479.41856 | V64: -33365.8766 | W64: 0.2867395248 | X64: -0.2764529557
R65: 51758.15942 | S65: 47429.80249 | T65: 22413.1698 | U65: -44245.40317 | V65: 13545.18177 | W65: -0.3638118105 | X65: 0.1099395763
R66: 52620.77875 | S66: 48220.28253 | T66: 22786.70596 | U66: 43326.67843 | V66: 9473.159399 | W66: 0.3507728493 | X66: 0.07639953079
R67: 53483.39807 | S67: 49010.76257 | T67: 23160.24213 | U67: -32468.14385 | V67: -30823.71038 | W67: -0.2677098486 | X67: -0.2555138834
R68: 54346.0174 | S68: 49801.24261 | T68: 23533.77829 | U68: 13634.0846 | V68: 45886.47542 | W68: 0.1084824793 | X68: 0.3763252598
R69: 55208.63672 | S69: 50591.72266 | T69: 23907.31445 | U69: 9342.753438 | V69: -51304.04217 | W69: =(U69-$W$1)/$W$2 -> 0.07346538975 | X69: =(V69-$X$1)/$X$2 -> -0.4242043272
R70: =R69+a_inc -> 56071.25604 | S70: 51382.2027 | T70: =T69+t_inc -> 24280.85062 | U70: -31541.31494 | V70: 45748.69006 | W70: -0.260146962 | X70: 0.3751903624
R71: 56933.87537 | S71: =S70+b_inc -> 52172.68274 | T71: 24654.38678 | U71: 48002.89539 | V71: -30262.89865 | W71: 0.3889305914 | X71: -0.2508946428
R72: 57796.49469 | S72: 52963.16278 | T72: 25027.92294 | U72: -54828.13625 | V72: 8086.207351 | W72: -0.4501664863 | X72: 0.06497561642
R73: 58659.11401 | S73: 53753.64282 | T73: 25401.45911 | U73: 50078.55642 | V73: 16007.20711 | W73: 0.4058679019 | X73: 0.1302185518
R74: 59521.73334 | S74: 54544.12286 | T74: 25774.99527 | U74: -34276.41497 | V74: -36726.72908 | W74: -0.2824652682 | X74: -0.3041353049
R75: 60384.35266 | S75: 55334.60291 | T75: 26148.53143 | U75: 10379.19315 | V75: 49423.24512 | W75: 0.08192269607 | X75: 0.4054565871
R76: 61246.97198 | S76: 56125.08295 | T76: 26522.0676 | U76: 16782.57217 | V76: -51133.97059 | W76: 0.134174011 | X76: -0.4228034978
R77: 62109.59131 | S77: 56915.56299 | T77: 26895.60376 | U77: -41497.0727 | V77: 41279.61822 | W77: -0.3413855445 | X77: 0.3383799377
R78: 62972.21063 | S78: 57706.04303 | T78: 27269.13992 | U78: 58387.52721 | V78: -21850.23935 | W78: 0.4736687689 | X78: -0.1816020529
R79: 63834.82996 | S79: 58496.52307 | T79: 27642.67609 | U79: -63592.3575 | V79: -2974.832566 | W79: -0.5216821788 | X79: -0.02613090236
R80: 64697.44928 | S80: 59287.00311 | T80: 28016.21225 | U80: 55649.09555 | V80: 27703.39781 | W80: 0.4513232769 | X80: 0.22655662
R81: 65560.0686 | S81: 60077.48315 | T81: 28389.74841 | U81: -35879.81326 | V81: -46721.66962 | W81: -0.2955489336 | X81: -0.386460678
R82: 66422.68793 | S82: 60867.9632 | T82: 28763.28458 | U82: 8179.982539 | V82: 55544.28103 | W82: 0.06397722603 | X82: 0.455873752
R83: 67285.30725 | S83: 61658.44324 | T83: 29136.82074 | U83: 21758.8225 | V83: -51847.09591 | W83: 0.1747800134 | X83: -0.4286773005
R84: 68147.92657 | S84: 62448.92328 | T84: 29510.3569 | U84: -47636.82773 | V84: 36047.77231 | W84: -0.3914856983 | X84: 0.2952867682
R85: 69010.5459 | S85: 63239.40332 | T85: 29883.89307 | U85: 63894.94041 | V85: -11293.05577 | W85: 0.5186090389 | X85: -0.09464565003
R86: 69873.16522 | S86: 64029.88336 | T86: 30257.42923 | U86: -66933.5154 | V86: -17160.50815 | W86: -0.5489458927 | X86: -0.1429741222
R87: 70735.78455 | S87: 64820.3634 | T87: 30630.96539 | U87: 55931.47915 | V87: 43051.79158 | W87: 0.4536275157 | X87: 0.3529768062
R88: 71598.40387 | S88: 65610.84344 | T88: 31004.50156 | U88: -33077.65442 | V88: -60474.86516 | W88: -0.2726834303 | X88: -0.4997416875
R89: 72461.02319 | S89: 66401.32349 | T89: 31378.03772 | U89: 3150.783402 | V89: 65199.58488 | W89: 0.02293916356 | X89: 0.535401638
R90: 73323.64252 | S90: 67191.80353 | T90: 31751.57388 | U90: 27473.77021 | V90: -55660.1624 | W90: 0.2214137565 | X90: -0.460084403
R91: 74186.26184 | S91: 67982.28357 | T91: 32125.11005 | U91: -52185.13158 | V91: 33384.51866 | W91: -0.4285996746 | X91: 0.2733503345
R92: 75048.88116 | S92: 68772.76361 | T92: 32498.64621 | U92: 65575.16125 | V92: -2754.625894 | W92: 0.5323195733 | X92: -0.02431712505
R93: 75911.50049 | S93: 69563.24365 | T93: 32872.18237 | U93: -64640.05667 | V93: -29867.41511 | W93: -0.5302313618 | X93: -0.2476371617
R94: 76774.11981 | S94: 70353.72369 | T94: 33245.71854 | U94: 49476.94104 | V94: 57472.36107 | W94: 0.4009587446 | X94: 0.4717547778
R95: 77636.73914 | S95: 71144.20374 | T95: 33619.2547 | U95: -23312.49387 | V95: -73915.35481 | W95: -0.1930001134 | X95: -0.6104470309
R96: 78499.35846 | S96: 71934.68378 | T96: 33992.79086 | U96: -8155.814301 | V96: 75279.3144 | W96: -0.06932221843 | X96: 0.6184253929
R97: 79361.97778 | S97: 72725.16382 | T97: 34366.32703 | U97: 37974.51657 | V97: -60788.03262 | W97: 0.3070994241 | X97: -0.5023211554
R98: 80224.59711 | S98: 73515.64386 | T98: 34739.86319 | U98: -59448.56327 | V98: 33058.28809 | W98: -0.4878689848 | X98: 0.2706632697
R99: 81087.21643 | S99: 74306.1239 | T99: 35113.39935 | U99: 67627.73961 | V99: 2379.944131 | W99: 0.54906853 | X99: 0.01797481169
R100: 81949.83575 | S100: 75096.60394 | T100: 35486.93552 | U100: -60436.91713 | V100: -38207.60347 | W100: -0.4959339124 | X100: -0.3163328299
R101: 82812.45508 | S101: 75887.08398 | T101: 35860.47168 | U101: =(R101-S101)*COS(T101)+S101*COS((R101/S101-1)*T101) -> 39193.65839 | V101: =(R101-S101)*SIN(T101)-S101*SIN((R101/S101-1)*T101) -> 66854.58384 | W101: 0.3170475722 | X101: 0.5490333756
R102: 83675.0744 | S102: 76677.56403 | T102: 36234.00784 | U102: -8386.345771 | V102: -82125.85067 | W102: -0.07120334595 | X102: -0.6780744602
R103: 84537.69373 | S103: 77468.04407 | T103: 36607.54401 | U103: -25253.72397 | V103: 80563.61669 | W103: -0.2088404729 | X103: 0.6619506301
R104: 85400.31305 | S104: 78258.52411 | T104: 36981.08017 | U104: 54196.59651 | V104: -62243.86617 | W104: 0.4394709432 | X104: -0.5143124263
R105: 86262.93237 | S105: 79049.00415 | T105: 37354.61633 | U105: -71766.84339 | V105: 30822.83969 | W105: -0.5883856545 | X105: 0.2522505415
R106: 87125.5517 | S106: 79839.48419 | T106: 37728.1525 | U106: 73645.706 | V106: 7190.926049 | W106: 0.5981748935 | X106: 0.05760144876
R107: 87988.17102 | S107: 80629.96423 | T107: 38101.68866 | U107: -58887.79039 | V107: -43794.96612 | W107: -0.4832931006 | X107: -0.3623542857
R108: 88850.79034 | S108: 81420.44427 | T108: 38475.22482 | U108: 30217.53785 | V108: 71197.4435 | W108: 0.24380279 | X108: 0.5848042279
R109: 89713.40967 | S109: 82210.92432 | T109: 38848.76099 | U109: 6475.980162 | V109: -83502.98929 | W109: 0.05007263524 | X109: -0.6894175443
R110: 90576.02899 | S110: 83001.40436 | T110: 39222.29715 | U110: -43352.97888 | V110: 78012.5189 | W110: -0.3565296642 | X110: 0.640937991
R111: 91438.64832 | S111: 83791.8844 | T111: 39595.83331 | U111: 72295 | V111: -55847.57107 | W111: 0.5871531869 | X111: -0.4616280328
R112: 92301.26764 | S112: 84582.36444 | T112: 39969.36948 | U112: -86678.59227 | V112: 21752.25085 | W112: -0.710064925 | X112: 0.1775387803
R113: 93163.88696 | S113: 85372.84448 | T113: 40342.90564 | U113: 82864.26177 | V113: 16896.96954 | W113: 0.6733979374 | X113: 0.1375472622
R114: 94026.50629 | S114: 86163.32452 | T114: 40716.4418 | U114: -61068.50229 | V114: -51669.70509 | W114: -0.5010876219 | X114: -0.4272161848
R115: 94889.12561 | S115: 86953.80457 | T115: 41089.97797 | U115: 25414.7498 | V115: 74912.47526 | W115: 0.204612233 | X115: 0.6154038472
R116: 95751.74493 | S116: 87744.28461 | T116: 41463.51413 | U116: 16865.61555 | V116: -81435.25513 | W116: 0.1348516417 | X116: -0.6723862288
R117: 96614.36426 | S117: 88534.76465 | T117: 41837.05029 | U117: -56926.03651 | V117: 69682.20894 | W117: -0.4672852679 | X117: 0.5723236883
R118: 97476.98358 | S118: 89325.24469 | T118: 42210.58646 | U118: 86180.6019 | V118: -42121.93538 | W118: 0.7004591394 | X118: -0.3485740257
R119: 98339.60291 | S119: 90115.72473 | T119: 42584.12262 | U119: -98162.58986 | V119: 4759.231049 | W119: -0.8037738829 | X119: 0.03757229528
R120: 99202.22223 | S120: 90906.20477 | T120: 42957.65878 | U120: 89961.47561 | V120: 34138.64748 | W120: 0.7313109166 | X120: 0.2795618709
R121: 100064.8416 | S121: 91696.68481 | T121: 43331.19495 | U121: -62918.35877 | V121: -65834.40444 | W121: -0.5161823763 | X121: -0.5438866295
R122: 100927.4609 | S122: 92487.16486 | T122: 43704.73111 | U122: 22415.29671 | V122: 83046.68261 | W122: 0.1801368165 | X122: 0.6824029106
R123: 101790.0802 | S123: 93277.6449 | T123: 44078.26727 | U123: 23211.81254 | V123: -81588.57403 | W123: 0.1866363536 | X123: -0.6736490713
R124: 102652.6995 | S124: 94068.12494 | T124: 44451.80344 | U124: -64416.08182 | V124: 61353.43204 | W124: -0.5284037361 | X124: 0.503722013
R125: 103515.3188 | S125: 94858.60498 | T125: 44825.3396 | U125: 92471.26369 | V125: -26419.58266 | W125: 0.7517906862 | X125: -0.2192383842
R126: 104377.9382 | S126: 95649.08502 | T126: 45198.87576 | U126: -101356.4509 | V126: -15765.19036 | W126: -0.8298356604 | X126: -0.1314813017
R127: 105240.5575 | S127: 96439.56506 | T127: 45572.41193 | U127: 89083.16248 | V127: 55957.35526 | W127: 0.7241439168 | X127: 0.4592761224
R128: 106103.1768 | S128: 97230.0451 | T128: 45945.94809 | U128: -58168.98285 | V128: -85118.32255 | W128: -0.47742766 | X128: -0.7027225673
R129: 106965.7961 | S129: 98020.52515 | T129: 46319.48425 | U129: 15142.99385 | V129: 96411.29185 | W129: 0.1207951179 | X129: 0.7924832495
R130: 107828.4155 | S130: 98811.00519 | T130: 46693.02042 | U130: 30822.92141 | V130: -86756.39445 | W130: 0.2487426955 | X130: -0.7162148817
R131: 108691.0348 | S131: 99601.48523 | T131: 47066.55658 | U131: -69871.33757 | V131: 57594.93471 | W131: -0.5729184033 | X131: 0.4727643807
R132: 109553.6541 | S132: 100391.9653 | T132: 47440.09274 | U132: 93587.44469 | V132: -14680.13926 | W132: 0.7608986783 | X132: -0.1225440563
R133: 110416.2734 | S133: 101182.4453 | T133: 47813.62891 | U133: -96837.44256 | V133: -33078.73165 | W133: =(U133-$W$1)/$W$2 -> -0.7929607343 | X133: =(V133-$X$1)/$X$2 -> -0.2740878276
R134: =R133+a_inc -> 111278.8928 | S134: 101972.9254 | T134: =T133+t_inc -> 48187.16507 | U134: 78913.32508 | V134: 75484.82298 | W134: 0.6411584531 | X134: 0.6201181063
R135: 112141.5121 | S135: =S134+b_inc -> 102763.4054 | T135: 48560.70123 | U135: -43725.91377 | V135: -103240.8749 | W135: -0.3595727978 | X135: -0.8519926784
R136: 113004.1314 | S136: 103553.8854 | T136: 48934.2374 | U136: -1007.902726 | V136: 109984.8447 | W136: -0.01099554779 | X136: 0.9042845952
R137: 113866.7507 | S137: 104344.3655 | T137: 49307.77356 | U137: 45418.98273 | V137: -93728.38688 | W137: 0.3678459682 | X137: -0.773641124
R138: 114729.3701 | S138: 105134.8455 | T138: 49681.30972 | U138: -79630.14817 | V138: 57374.89144 | W138: -0.6525499049 | X138: 0.4709519492
R139: 115591.9894 | S139: 105925.3256 | T139: 50054.84589 | U139: 95928.19593 | V139: -8188.489212 | W139: 0.7799991142 | X139: -0.06907425224
R140: 116454.6087 | S140: 106715.8056 | T140: 50428.38205 | U140: -90488.62031 | V140: -43688.7023 | W140: -0.7411546004 | X140: -0.361479022
R141: 117317.228 | S141: 107506.2856 | T141: 50801.91821 | U141: 64269.13468 | V141: 87365.52546 | W141: 0.5216624491 | X141: 0.7179759436
R142: 118179.8474 | S142: 108296.7657 | T142: 51175.45438 | U142: -22864.48463 | V142: -113526.268 | W142: -0.1893443761 | X142: -0.9367104235
R143: 119042.4667 | S143: 109087.2457 | T143: 51548.99054 | U143: -24660.62781 | V143: 116450.7076 | W143: -0.2040008321 | X143: 0.9575419982
R144: 119905.086 | S144: 109877.7258 | T144: 51922.5267 | U144: 67719.76025 | V144: -95288.33752 | W144: 0.5498194148 | X144: -0.7864899768
R145: 120767.7053 | S145: 110668.2058 | T145: 52296.06287 | U145: -96518.74938 | V145: 54300.76012 | W145: -0.7903602108 | X145: 0.4456312376
R146: 121630.3246 | S146: 111458.6859 | T146: 52669.59903 | U146: 104233.824 | V146: -2005.951193 | W146: 0.8477727048 | X146: -0.01815051266
R147: 122492.944 | S147: 112249.1659 | T147: 53043.13519 | U147: -88574.12003 | V147: -50604.71873 | W147: -0.7255323552 | X147: -0.4184442066
R148: 123355.5633 | S148: 113039.6459 | T148: 53416.67136 | U148: 52376.10696 | V148: 92402.52671 | W148: 0.4246158217 | X148: 0.7594642351
R149: 124218.1826 | S149: 113830.126 | T149: 53790.20752 | U149: -3083.59668 | V149: -114511.607 | W149: -0.02793312688 | X149: -0.9448263694
R150: 125080.8019 | S150: 114620.606 | T150: 54163.74368 | U150: -48791.71876 | V150: 112236.4802 | W150: -0.4009095626 | X150: 0.9228306516
R151: 125943.4213 | S151: 115411.0861 | T151: 54537.27985 | U151: 91910.01529 | V151: -86104.19249 | W151: 0.7472109219 | X151: -0.7108428868
R152: 126806.0406 | S152: 116201.5661 | T152: 54910.81601 | U152: -116566.1724 | V152: 41785.56278 | W152: -0.9539463754 | X152: 0.3425472536
R153: 127668.6599 | S153: 116992.0461 | T153: 55284.35217 | U153: 116842.1649 | V153: 11099.22174 | W153: 0.9506562585 | X153: 0.08979292605
R154: 128531.2792 | S154: 117782.5262 | T154: 55657.88834 | U154: -91974.61205 | V154: -61042.86215 | W154: -0.7532802332 | X154: -0.504420111
R155: 129393.8986 | S155: 118573.0062 | T155: 56031.4245 | U155: 46626.49325 | V155: 97141.66565 | W155: 0.3776992054 | X155: 0.7984991228
R156: 130256.5179 | S156: 119363.4863 | T156: 56404.96066 | U156: 10014.36525 | V156: -111477.0712 | W156: 0.07894571512 | X156: -0.9198317944
R157: 131119.1372 | S157: 120153.9663 | T157: 56778.49683 | U157: -66133.49688 | V157: 100867.9675 | W157: -0.5424177738 | X157: 0.8291915708
R158: 131981.7565 | S158: 120944.4464 | T158: 57152.03299 | U158: 109788.8928 | V158: -67604.93109 | W158: 0.8931018422 | X158: -0.5584699346
R159: 132844.3759 | S159: 121734.9264 | T159: 57525.56915 | U159: -131478.7869 | V159: 18994.99539 | W159: -1.075632709 | X159: 0.1548280815
R160: 133706.9952 | S160: 122525.4064 | T160: 57899.10532 | U160: 126223.2208 | V160: 34196.93639 | W160: 1.027205297 | X160: 0.2800419794
R161: 134569.6145 | S161: 123315.8865 | T161: 58272.64148 | U161: -94701.97979 | V161: -80082.04567 | W161: -0.775535444 | X161: -0.6612402421
R162: 135432.2338 | S162: 124106.3665 | T162: 58646.17764 | U162: 43189.63305 | V162: 108255.6082 | W162: 0.3496545645 | X162: 0.8900413846
R163: 136294.8531 | S163: 124896.8466 | T163: 59019.71381 | U163: 17714.52327 | V163: -112111.6446 | W163: 0.1417786945 | X163: -0.9250585879
R164: 137157.4725 | S164: 125687.3266 | T164: 59393.24997 | U164: -75302.90153 | V164: 90353.68838 | W164: -0.6172397466 | X164: 0.7425885589
R165: 138020.0918 | S165: 126477.8066 | T165: 59766.78613 | U165: =(R165-S165)*COS(T165)+S165*COS((R165/S165-1)*T165) -> 117455.5747 | V165: =(R165-S165)*SIN(T165)-S165*SIN((R165/S165-1)*T165) -> -47360.19112 | W165: 0.9556616581 | X165: -0.391719991
R166: 138882.7111 | S166: 127268.2867 | T166: 60140.3223 | U166: -135239.3829 | V166: -7691.147211 | W166: -1.106319021 | X166: -0.06497779308
R167: 139745.3304 | S167: 128058.7667 | T167: 60513.85846 | U167: 124847.9808 | V167: 62765.95431 | W167: 1.015983394 | X167: 0.5153565418
R168: 140607.9498 | S168: 128849.2468 | T168: 60887.39462 | U168: -88456.84505 | V168: -105573.0464 | W168: -0.7245753961 | X168: -0.8712020861
R169: 141470.5691 | S169: 129639.7268 | T169: 61260.93079 | U169: 33797.45496 | V169: 126262.711 | W169: 0.2730147695 | X169: 1.038360572
R170: 142333.1884 | S170: 130430.2068 | T170: 61634.46695 | U170: 27469.86092 | V170: -119635.1827 | W170: 0.2213818569 | X170: -0.9870277493
R171: 143195.8077 | S171: 131220.6869 | T171: 62008.00311 | U171: -82243.81787 | V171: 86369.56327 | W171: -0.6738773444 | X171: 0.7097724971
R172: 144058.4271 | S172: 132011.1669 | T172: 62381.53928 | U172: 118800.1639 | V172: -32989.99015 | W172: 0.9666334517 | X172: -0.2733568901
R173: 144921.0464 | S173: 132801.647 | T173: 62755.07544 | U173: -129332.2061 | V173: -29443.09058 | W173: -1.058116696 | X173: -0.2441421259
R174: 145783.6657 | S174: 133592.127 | T174: 63128.6116 | U174: 111660.5141 | V174: 87651.30364 | W174: 0.9083741968 | X174: 0.720329814
R175: 146646.285 | S175: 134382.6071 | T175: 63502.14777 | U175: -69733.41834 | V175: -128977.7054 | W175: -0.571792988 | X175: -1.063979349
R176: 147508.9044 | S176: 135173.0871 | T176: 63875.68393 | U176: 12798.96482 | V176: 144138.2931 | W176: 0.1016679355 | X176: 1.185596462
R177: 148371.5237 | S177: 135963.5671 | T177: 64249.22009 | U177: 46583.30825 | V177: -129287.4005 | W177: 0.3773468175 | X177: -1.066530217
R178: 149234.143 | S178: 136754.0472 | T178: 64622.75626 | U178: -95268.31292 | V178: 86939.39121 | W178: -0.7801566996 | X178: 0.7144660016
R179: 150096.7623 | S179: 137544.5272 | T179: 64996.29242 | U179: 122401.7737 | V179: -25530.91708 | W179: 0.9960224429 | X179: -0.2119187083
R180: 150959.3817 | S180: 138335.0073 | T180: 65369.82858 | U180: -121820.9723 | V180: -42300.22428 | W180: -0.996825331 | X180: -0.3500425387
R181: 151822.001 | S181: 139125.4873 | T181: 65743.36475 | U181: 93451.01428 | V181: 102364.6678 | W181: 0.7597854116 | X181: 0.8415194489
R182: 152684.6203 | S182: 139915.9673 | T182: 66116.90091 | U182: -43381.19226 | V182: -141939.1293 | W182: -0.3567598842 | X182: -1.17073877
R183: 153547.2396 | S183: 140706.4474 | T183: 66490.43707 | U183: -17409.47523 | V183: 152505.3456 | W183: -0.144831719 | X183: 1.254513402
R184: 154409.8589 | S184: 141496.9274 | T184: 66863.97324 | U184: 75414.03533 | V184: -131616.2401 | W184: 0.6126043897 | X184: -1.08571218
R185: 155272.4783 | S185: 142287.4075 | T185: 67237.5094 | U185: -117542.9163 | V185: 83477.25181 | W185: -0.9619165665 | X185: 0.685949382
R186: 156135.0976 | S186: 143077.8875 | T186: 67611.04556 | U186: 134015.7019 | V186: -18104.04093 | W186: 1.090791629 | X186: -0.1507457231
R187: 156997.7169 | S187: 143868.3676 | T187: 67984.58173 | U187: -120566.345 | V187: -50775.91463 | W187: -0.9865876226 | X187: -0.4198542967
R188: 157860.3362 | S188: 144658.8476 | T188: 68358.11789 | U188: 79470.85318 | V188: 108637.0616 | W188: 0.6457078599 | X188: 0.8931833039
R189: 158722.9556 | S189: 145449.3276 | T189: 68731.65405 | U189: -19157.20974 | V189: -143263.4716 | W189: -0.1590931623 | X189: -1.181646986
R190: 159585.5749 | S190: 146239.8077 | T190: 69105.19022 | U190: -47536.61563 | V190: 147381.2917 | W190: -0.3906679716 | X190: 1.212308084
R191: 160448.1942 | S191: 147030.2877 | T191: 69478.72638 | U191: 106095.2354 | V191: -120243.4285 | W191: 0.8629617465 | X191: -0.9920376906
R192: 161310.8135 | S192: 147820.7678 | T192: 69852.26254 | U192: -143467.225 | V192: 67815.65087 | W192: -1.173457882 | X192: 0.5569494009
R193: 162173.4329 | S193: 148611.2478 | T193: 70225.79871 | U193: 150936.9948 | V193: -1513.147757 | W193: 1.228868698 | X193: -0.01409143632
R194: 163036.0522 | S194: 149401.7278 | T194: 70599.33487 | U194: -126098.6153 | V194: -64249.7041 | W194: -1.031730725 | X194: -0.5308339209
R195: 163898.6715 | S195: 150192.2079 | T195: 70972.87103 | U195: 73490.08637 | V195: 115173.9967 | W195: 0.5969050436 | X195: 0.9470261077
R196: 164761.2908 | S196: 150982.6879 | T196: 71346.4072 | U196: -3731.771489 | V196: -140184.3775 | W196: -0.03322220722 | X196: -1.156285398
R197: 165623.9102 | S197: 151773.168 | T197: 71719.94336 | U197: -68664.66566 | V197: 133855.2854 | W197: =(U197-$W$1)/$W$2 -> -0.5630720092 | X197: =(V197-$X$1)/$X$2 -> 1.100898365
R198: =R197+a_inc -> 166486.5295 | S198: 152563.648 | T198: =T197+t_inc -> 72093.47952 | U198: 128360.1031 | V198: -97622.43 | W198: 1.044642171 | X198: -0.8057152071
R199: 167349.1488 | S199: =S198+b_inc -> 153354.1281 | T199: 72467.01569 | U199: -162473.1237 | V199: 39506.12288 | W199: -1.32854525 | X199: 0.3237721804
R200: 168211.7681 | S200: 154144.6081 | T200: 72840.55185 | U200: 163379.2788 | V200: 27605.54808 | W200: 1.330397234 | X200: 0.2257506608
... 181 more rows

Sheet Info (hidden)
B2: What is it? | V2: 0
B3: The dazzling display is based on a hypocycloid curve, plotted on an XY (Scatter) chart. A hypocycloid is
B4: a special plane curve that is generated by the trace of a fixed point on a small circle that rolls within a
B5: larger circle. Hasbro's SpiroGraph is also based on this concept.
B7: How do I control it?
B8: Basically, just click the various controls to change various aspects of the image. The curve is determined
B9: by three parameters: a, b, and t. You can adjust these manually by using the three scroller. Or, click
B10: Random to generate random values for these three parameters. You can also control the line
B11: smoothness (on or off), the presence of line markers, and the color (green or mulitcolored).
B13: To turn animation on or off, click the Toggle Animation button. Control the speed of the animation by
B14: using the scroller.
B16: Favorites?
B17: When you get a plot that you like, click the Add to Favorites button to store the three parameters. You
B18: can then retrieve those parameters later. Use the Next and Previous buttons to scroll through all of the
B19: saved favorites. These parameters are stored in column N:P. If a favorite is displayed, you'll see a number
B20: in the upper left corner of the chart.
B22: Who did this?
B23: This workbook was created by John Walkenbach, of JWalk & Associates. Visit John's web site (The
B24: Spreadsheet Page) at:
B25: http://j-walk.com/ss
B27: Can I share this with others?
B28: Sure, this workbook can be freely distributed. But it may not be sold or distributed as part of any
B29: commercial product without the written permission of JWalk & Associates.
